Workbook

Sheet NSU
B1: Maaret Ahonen | E1: 18.7.1992 Ilmajoki
B2: SUPERPESIS | E2: Runkosarja | I2: Kärkilyönnit (KL), pesänvälit | P2: Ylempi loppusarja | U2: Alempi loppusarja | AB2: Arvo-ottelut ja mitalit
B3: Vuosi | C3: Sija | D3: Seura | E3: OTT | F3: KUN | G3: LÖI | H3: TOI | I3: KL | J3: 0 > 1 | K3: 1 > 2 | L3: 2 > 3 | M3: 3 > k | N3: KL-% | P3: OTT | Q3: KUN | R3: LÖI | S3: TOI | T3: KL | U3: OTT | V3: KUN | W3: LÖI | X3: TOI | Y3: KL | Z3: IL | AA3: LL | AB3: Halli | AC3: K | AD3: H | AE3: P
B4: 2008 | C4: 1. | D4: IK | F4: ykköspesis
B5: 2009 | C5: 2. | D5: IK | F5: ykköspesis
B6: 2010 | C6: 2. | D6: Virkiä 2 | F6: ykköspesis
B7: 2010 | C7: 3. | D7: Virkiä | E7: 13 | F7: 0 | G7: 5 | H7: 4 | I7: 25 | J7: 7 | K7: 5 | L7: 8 | M7: 5 | N7: 39.7 % | O7: =PRODUCT(I7/N7) -> 63.00403226 | P7: 8 | Q7: 0 | R7: 1 | S7: 2 | T7: 9 | AE7: 1
B8: 2011 | C8: 1. | D8: Virkiä | E8: 15 | F8: 0 | G8: 8 | H8: 4 | I8: 34 | J8: 11 | K8: 6 | L8: 9 | M8: 8 | N8: 47.9 % | O8: =PRODUCT(I8/N8) -> 70.98121086 | P8: 2 | Q8: 0 | R8: 0 | S8: 1 | T8: 2 | AC8: 1
B9: 2012 | C9: 7. | D9: Virkiä 2 | F9: ykköspesis
B10: 2012 | C10: 8. | D10: YPJ | E10: 3 | F10: 0 | G10: 2 | H10: 0 | I10: 10 | J10: 1 | K10: 2 | L10: 5 | M10: 2 | N10: 50.0 % | O10: =PRODUCT(I10/N10) -> 20
B11: 2012 | C11: 1. | D11: Virkiä | E11: 14 | F11: 1 | G11: 11 | H11: 3 | I11: 33 | J11: 6 | K11: 5 | L11: 10 | M11: 12 | N11: 44.6 % | O11: =PRODUCT(I11/N11) -> 73.99103139 | P11: 15 | Q11: 1 | R11: 5 | S11: 3 | T11: 38 | AB11: 1 | AC11: 1
B12: 2013 | C12: 1. | D12: Virkiä | E12: 17 | F12: 0 | G12: 11 | H12: 8 | I12: 54 | J12: 17 | K12: 13 | L12: 13 | M12: 11 | N12: 50.0 % | O12: =PRODUCT(I12/N12) -> 108 | P12: 8 | Q12: 1 | R12: 5 | S12: 3 | T12: 31 | AB12: 1 | AC12: 1
B13: 2014
B14: 2015 | C14: 1. | D14: Virkiä | E14: 24 | F14: 0 | G14: 15 | H14: 10 | I14: 116 | J14: 1 | K14: 9 | L14: 91 | M14: 15 | N14: 64.8 % | O14: =PRODUCT(I14/N14) -> 179.0123457 | P14: 10 | Q14: 0 | R14: 3 | S14: 5 | T14: 35 | AC14: 1
B15: 2016 | C15: 2. | D15: Virkiä | E15: 22 | F15: 0 | G15: 8 | H15: 5 | I15: 77 | J15: 7 | K15: 6 | L15: 56 | M15: 8 | N15: 50.0 % | O15: 154 | P15: 10 | Q15: 1 | R15: 6 | S15: 4 | T15: 39 | AD15: 1
B16: 2017 | C16: 3. | D16: Virkiä | E16: 25 | F16: 1 | G16: 9 | H16: 13 | I16: 92 | J16: 5 | K16: 10 | L16: 67 | M16: 10 | N16: 52.3 % | O16: 176 | P16: 10 | Q16: 0 | R16: 4 | S16: 3 | T16: 25 | AE16: 1
B17: 2018 | C17: 1. | D17: SiiPe | F17: suomensarja
B18: 2019 | C18: 2. | D18: SiiPe | F18: ykköspesis | U18: 3 | V18: 0 | W18: 5 | X18: 3 | Y18: 15
B19: 2020 | C19: 11. | D19: SiiPe | E19: 18 | F19: 1 | G19: 6 | H19: 5 | I19: 42 | J19: 5 | K19: 9 | L19: 21 | M19: 7 | N19: 37.5 % | O19: 112
B20: ****
B21: 2024 | C21: 3. | D21: IK | F21: suomensarja | O21: 112
B22: Yhteensä | E22: =SUM(E4:E21) -> 151 | F22: 3 | G22: 75 | H22: 52 | I22: 483 | J22: 60 | K22: 65 | L22: 280 | M22: 78 | N22: =PRODUCT(I22/O22) -> 45.2 % | O22: =SUM(O7:O21) -> 1068.98862 | P22: =SUM(P4:P21) -> 63 | Q22: 3 | R22: 24 | S22: 21 | T22: 179 | U22: 3 | V22: 0 | W22: 5 | X22: 3 | Y22: 15 | Z22: 0 | AA22: 0 | AB22: 2 | AC22: 4 | AD22: 1 | AE22: 2
B23: Pesispörssi | D23: =SUM(F22:H22)+((I22-F22-G22)/3)+(E22/3)+(Z22*25)+(AA22*25)+(AB22*10)+(AC22*25)+(AD22*20)+(AE22*15) -> 485.3
B25: URA SUPERISSA | E25: OTT | F25: KUN | G25: LÖI | H25: TOI | I25: KL | K25: ka/L | L25: ka/T | M25: ka/KL | N25: KL - % | P25: ENSIMMÄISET
B26: Runkosarja | E26: =PRODUCT(E22) -> 151 | F26: =PRODUCT(F22) -> 3 | G26: =PRODUCT(G22) -> 75 | H26: =PRODUCT(H22) -> 52 | I26: =PRODUCT(I22) -> 483 | K26: =PRODUCT((F26+G26)/E26) -> 0.52 | L26: =PRODUCT(H26/E26) -> 0.34 | M26: =PRODUCT(I26/E26) -> 3.20 | N26: =PRODUCT(N22) -> 45.2 % | O26: =PRODUCT(O22) -> 1068.98862 | P26: Ottelu | R26: 11.05. 2010 PeTo-Jussit - Virkiä 2-0 (5-1, 3-0) | AA26: 1. ottelu | AC26: 17 v 9 kk 23 pv
B27: Ylempi loppusarja | E27: =SUM(P22) -> 63 | F27: =SUM(Q22) -> 3 | G27: =SUM(R22) -> 24 | H27: =SUM(S22) -> 21 | I27: =SUM(T22) -> 179 | K27: =PRODUCT((F27+G27)/E27) -> 0.43 | L27: =PRODUCT(H27/E27) -> 0.33 | M27: =PRODUCT(I27/E27) -> 2.84 | N27: =PRODUCT(I27/O27) -> 52.6 % | O27: 340 | P27: Lyöty | R27: 11.07. 2010 Lipottaret - Virkiä 0-2 (1-6, 0-9) | AA27: 4. ottelu | AC27: 17 v 11 kk 23 pv
B28: Alempi loppusarja | E28: 3 | F28: 0 | G28: 5 | H28: 3 | I28: 15 | K28: =PRODUCT((F28+G28)/E28) -> 1.67 | L28: =PRODUCT(H28/E28) -> 1.00 | M28: =PRODUCT(I28/E28) -> 5.00 | N28: =PRODUCT(I28/O28) -> 71.4 % | O28: 21 | P28: Tuotu | R28: 01.08. 2010 Virkiä - Lipottaret 2-0 (14-4, 19-0) | AA28: 11. ottelu | AC28: 18 v 0 kk 14 pv
B29: KAIKKI | E29: =SUM(E26:E28) -> 217 | F29: =SUM(F26:F28) -> 6 | G29: =SUM(G26:G28) -> 104 | H29: =SUM(H26:H28) -> 76 | I29: =SUM(I26:I28) -> 677 | K29: =PRODUCT((F29+G29)/E29) -> 0.51 | L29: =PRODUCT(H29/E29) -> 0.35 | M29: =PRODUCT(I29/E29) -> 3.12 | N29: =PRODUCT(I29/O29) -> 47.3 % | O29: =SUM(O26:O28) -> 1429.98862 | P29: Kunnari | R29: 18.08. 2012 Virkiä - Lukko 2-0 (4-1, 13-0) | AA29: 62. ottelu | AC29: 20 v 1 kk 0 pv
B31: Seurat | D31: IK = Ilmajoen Kisailijat (1921), kasvattajaseura
D32: Virkiä = Lapuan Virkiä (1907)
D33: SiiPe = Siilinjärven Pesis (1987)

Sheet NYP,NSS
B1: Maaret Ahonen | E1: 18.7.1992 Ilmajoki
B2: YKKÖSPESIS | E2: Runkosarja | L2: Runkosarja TOP-10 | Q2: Jatkosarjat | X2: SUOMENSARJA | AA2: Runkosarja | AH2: Runkosarja TOP-10 | AM2: Jatkosarjat
B3: Vuosi | C3: Sija | D3: Seura | E3: OTT | F3: KUN | G3: LÖI | H3: TOI | I3: KL | J3: KL-% | L3: LÖI | M3: TOI | N3: L+T | O3: KL | Q3: OTT | R3: KUN | S3: LÖI | T3: TOI | U3: KL | V3: KL-% | X3: Vuosi | Y3: Sija | Z3: Seura | AA3: OTT | AB3: KUN | AC3: LÖI | AD3: TOI | AE3: KL | AF3: KL-% | AH3: LÖI | AI3: TOI | AJ3: L+T | AK3: KL | AM3: OTT | AN3: KUN | AO3: LÖI | AP3: TOI | AQ3: KL | AR3: KL-%
B5: 2008 | C5: 1. | D5: IK | E5: 3 | F5: 0 | G5: 3 | H5: 3 | I5: 13 | J5: 54.2 % | K5: 24 | Q5: 3 | R5: 0 | S5: 0 | T5: 3 | U5: 10 | V5: 52.6 % | W5: 19
B6: 2009 | C6: 2. | D6: IK | E6: 14 | F6: 1 | G6: 11 | H6: 18 | I6: 71 | J6: 70.3 % | K6: 101 | M6: 10. | N6: 7. | O6: 3. | Q6: 4 | R6: 0 | S6: 1 | T6: 3 | U6: 12 | V6: 48.0 % | W6: 25
B7: 2010 | C7: 2. | D7: Virkiä 2 | E7: 3 | F7: 1 | G7: 7 | H7: 5 | I7: 15 | J7: 75.0 % | K7: 20
B8: 2012 | C8: 7. | D8: Virkiä 2 | E8: 1 | F8: 0 | G8: 1 | H8: 1 | I8: 6 | J8: 75.0 % | K8: 8
B10: 2019 | C10: 2. | D10: SiiPe | E10: 20 | F10: 0 | G10: 31 | H10: 17 | I10: 112 | J10: 61.9 % | K10: 181 | Q10: 8 | R10: 1 | S10: 9 | T10: 4 | U10: 38 | V10: 56.7 % | W10: 67
B11: YHTEENSÄ | E11: =SUM(E4:E10) -> 41 | F11: =SUM(F4:F10) -> 2 | G11: =SUM(G4:G10) -> 53 | H11: =SUM(H4:H10) -> 44 | I11: =SUM(I4:I10) -> 217 | J11: =PRODUCT(I11/K11) -> 65.0 % | K11: =SUM(K4:K10) -> 334 | Q11: =SUM(Q4:Q10) -> 15 | R11: =SUM(R4:R10) -> 1 | S11: =SUM(S4:S10) -> 10 | T11: =SUM(T4:T10) -> 10 | U11: =SUM(U4:U10) -> 60 | V11: =PRODUCT(U11/W11) -> 54.1 % | W11: =SUM(W4:W10) -> 111 | X11: YHTEENSÄ | AA11: =SUM(AA4:AA10) -> 0 | AB11: =SUM(AB4:AB10) -> 0 | AC11: =SUM(AC4:AC10) -> 0 | AD11: =SUM(AD4:AD10) -> 0 | AE11: =SUM(AE4:AE10) -> 0 | AF11: 0.0 % | AG11: =SUM(AG4:AG10) -> 0 | AM11: =SUM(AM4:AM10) -> 0 | AN11: =SUM(AN4:AN10) -> 0 | AO11: =SUM(AO4:AO10) -> 0 | AP11: =SUM(AP4:AP10) -> 0 | AQ11: =SUM(AQ4:AQ10) -> 0 | AR11: 0.0 % | AS11: =SUM(AS4:AS10) -> 0
B13: KAIKKI OTTELUT | E13: OTT | F13: KUN | G13: LÖI | H13: TOI | I13: KL | J13: KL-% | L13: ka/L | M13: ka/T | N13: ka/l+t | O13: ka/kl | R13: Seurat | T13: IK = Ilmajoen Kisailijat (1921), kasvattajaseura
B14: SUPERPESIS | E14: 217 | F14: 6 | G14: 104 | H14: 76 | I14: 677 | J14: 51.4 % | K14: =PRODUCT(I14/J14) -> 1317.120623 | L14: =PRODUCT((F14+G14)/E14) -> 0.51 | M14: =PRODUCT(H14/E14) -> 0.35 | N14: =PRODUCT((F14+G14+H14)/E14) -> 0.86 | O14: =PRODUCT(I14/E14) -> 3.12 | T14: Virkiä = Lapuan Virkiä (1907)
B15: YKKÖSPESIS | E15: =PRODUCT(E11+Q11) -> 56 | F15: =PRODUCT(F11+R11) -> 3 | G15: =PRODUCT(G11+S11) -> 63 | H15: =PRODUCT(H11+T11) -> 54 | I15: =PRODUCT(I11+U11) -> 277 | J15: =PRODUCT(I15/K15) -> 62.2 % | K15: =PRODUCT(K11+W11) -> 445 | L15: =PRODUCT((F15+G15)/E15) -> 1.18 | M15: =PRODUCT(H15/E15) -> 0.96 | N15: =PRODUCT((F15+G15+H15)/E15) -> 2.14 | O15: =PRODUCT(I15/E15) -> 4.95 | T15: SiiPe = Siilinjärven Pesis (1987)
B16: SUOMENSARJA | E16: =PRODUCT(AA11+AM11) -> 0 | F16: =PRODUCT(AB11+AN11) -> 0 | G16: =PRODUCT(AC11+AO11) -> 0 | H16: =PRODUCT(AD11+AP11) -> 0 | I16: =PRODUCT(AE11+AQ11) -> 0 | J16: 0.0 % | K16: =PRODUCT(AG11+AS11) -> 0 | L16: 0.00 | M16: 0.00 | N16: 0.00 | O16: 0.00
B17: YHTEENSÄ | E17: =SUM(E14:E16) -> 273 | F17: =SUM(F14:F16) -> 9 | G17: 167 | H17: 130 | I17: 954 | J17: =PRODUCT(I17/K17) -> 54.1 % | K17: =SUM(K14:K16) -> 1762.120623 | L17: =PRODUCT((F17+G17)/E17) -> 0.64 | M17: =PRODUCT(H17/E17) -> 0.48 | N17: =PRODUCT((F17+G17+H17)/E17) -> 1.12 | O17: =PRODUCT(I17/E17) -> 3.49

Sheet Arvo-ottelut
B1: ITÄ - LÄNSI - KORTTI
B2: Maaret Ahonen | C2: 18.7.1992 Ilmajoki
B3: B-TYTÖT | C3: Itä - Länsi, tulos | D3: Joukkue | E3: Seura | G3: V | H3: T | I3: H | J3: Up. | K3: Lj. | L3: Palk. | M3: O | N3: K | O3: L | P3: T | Q3: KL | R3: 1 | S3: 2 | T3: 3 | U3: k | V3: KL-% | W3: Pelinjohtaja | X3: Yleisöä
B4: 23.07. 2011 Kouvola | C4: 0-2 (0-5, 6-14) | D4: Länsi | E4: Virkiä | G4: 1 | J4: 2v | K4: 4 | M4: 1 | O4: 2 | Q4: 3/5 | T4: 1/1 | U4: 2/4 | V4: 60.0 % | W4: Mika Takalahti | X4: 1016
